fUST/lending_fUST_20250312
["ID","MTS","AMOUNT","RATE_DAILY","PERIOD"]
[355998423,1741789849261,-151.0,0.000248,7]
[355998424,1741789849271,-151.0,0.000248,7]
[355998425,1741789849281,-155.775297,0.000248,7]
[355998426,1741789849291,-151.0,0.000248,7]
[355998427,1741789849301,-151.0,0.000248,7]
[355998428,1741789849313,-151.0,0.000248,7]
[355998429,1741789849323,-209.394802,0.000248,7]
[355998430,1741789849332,-151.0,0.000248,7]
[355998431,1741789849342,-252.094449,0.000248,7]
[355998432,1741789849352,-252.094449,0.000248,7]
[355998433,1741789849361,-160.0,0.00024821,6]
[355998434,1741789849371,-141832.3957,0.00024899,4]
[355998435,1741789849381,-206.0,0.000249,2]
[355998436,1741789849391,-205.0,0.000249,2]
[355998437,1741789849400,-205.0,0.000249,2]
[355998438,1741789849409,-151.0,0.000249,7]
[355998439,1741789849419,-150.38,0.000249,2]
[355998440,1741789849429,-150.38,0.000249,2]
[355998441,1741789849439,-206.131443,0.000249,2]
[355998442,1741789849449,-200.0,0.000249,10]
[355998443,1741789849458,-200.0,0.000249,10]
[355998444,1741789849468,-200.0,0.000249,10]
[355998445,1741789849478,-200.0,0.000249,10]
[355998446,1741789849487,-200.0,0.000249,10]
[355998447,1741789849496,-200.0,0.000249,10]
[355998448,1741789849506,-200.0,0.000249,10]
[355998449,1741789849515,-200.0,0.000249,10]
[355998450,1741789849525,-200.0,0.000249,10]
[355998451,1741789849535,-200.0,0.000249,10]
[355998452,1741789849545,-200.0,0.000249,10]
[355998453,1741789849554,-200.0,0.000249,10]
[355998454,1741789849565,-267.79989044,0.000249,10]
[355998455,1741789849575,-151.0,0.000249,7]
[355998456,1741789849585,-11390.78676784,0.000249,8]
[355998457,1741789849595,-151.0,0.000249,7]
[355998458,1741789849604,-153.572112,0.000249,7]
[355998459,1741789849614,-151.151161,0.000249,7]
[355998460,1741789849623,-151.0,0.000249,7]
[355998461,1741789849633,-156.22818,0.000249,7]
[355998462,1741789849643,-242.146356,0.000249,7]
[355998463,1741789849653,-151.0,0.000249,7]
[355998464,1741789849662,-151.0,0.000249,7]
[355998465,1741789849672,-151.788353,0.000249,7]
[355998466,1741789849681,-1078.887824,0.000249,7]
[355998467,1741789849691,-1078.887824,0.000249,7]
[355998468,1741789849700,-1078.887824,0.000249,7]
[355998469,1741789849710,-1078.887824,0.000249,7]
[355998470,1741789849720,-151.0,0.000249,7]
[355998471,1741789849730,-151.0,0.000249,7]
[355998472,1741789849739,-151.0,0.000249,7]
[355998473,1741789849749,-151.0,0.000249,7]
[355998474,1741789849759,-151.0,0.000249,7]
[355998475,1741789849769,-151.0,0.000249,7]
[355998476,1741789849781,-151.0,0.000249,7]
[355998477,1741789849791,-151.0,0.000249,7]
[355998478,1741789849802,-234309.49220906,0.000249,2]
[355998479,1741789849957,-1363.12094646,0.000249,2]
[355998480,1741789851059,-500.0,0.00016673,2]
[355998481,1741789851072,-80.68342312,0.00016673,2]
[355998482,1741789851084,-410.99378257,0.00016673,2]
[355998483,1741789851094,-500.82198181,0.00016673,2]
[355998484,1741789851104,-501.27003679,0.00016673,2]
[355998485,1741789851113,-510.44633331,0.00021917,2]
[355998486,1741789851123,-500.0,0.00021973,2]
[355998487,1741789851132,-1000.0,0.00022152,2]
[355998488,1741789851142,-500.0,0.00022191,2]
[355998489,1741789851151,-206.46786552,0.00022191,2]
[355998490,1741789851864,-659.70213448,0.00022191,2]
[355998491,1741789851873,-380.82484264,0.00022465,2]
[355998492,1741789851883,-866.17,0.00022465,2]
[355998493,1741789851892,-866.17,0.00022739,2]
[355998494,1741789851902,-866.17,0.00023013,2]
[355998495,1741789851911,-151.0,0.00023013,7]
[355998496,1741789851920,-244.113249,0.00023013,7]
[355998497,1741789851930,-866.17,0.00023287,2]
[355998498,1741789851939,-866.17,0.00023561,2]
[355998499,1741789851948,-866.17,0.00023835,2]
[355998500,1741789851958,-866.17,0.00024109,2]
[355998501,1741789851967,-151.0,0.00024383,7]
[355998502,1741789851977,-866.17,0.00024383,2]
[355998503,1741789851987,-866.17,0.00024657,2]
[355998504,1741789852002,-151.0,0.000248,7]
[355998505,1741789852012,-105684.63185816,0.000249,2]
[355998506,1741789852027,-84132.29403432,0.000249,2]
[355998507,1741789852039,-151.0,0.000249,7]
[355998508,1741789852049,-163.583297,0.000249,7]
[355998509,1741789852060,-151.0,0.000249,7]
[355998510,1741789852073,-252.094449,0.000249,7]
[355998511,1741789852084,-252.094449,0.000249,7]
[355998512,1741789852095,-151.0,0.000249,7]
[355998513,1741789852104,-151.0,0.000249,7]
[355998514,1741789852114,-151.0,0.000249,7]
[355998515,1741789852124,-151.0,0.000249,7]
[355998516,1741789852133,-418.18315111,0.00024931,2]
[355998517,1741789852143,-807.82,0.00024931,2]
[355998518,1741789852152,-500.0,0.00024931,2]
[355998519,1741789852162,-500.0,0.00024931,2]
[355998520,1741789852171,-500.0,0.00024931,2]
[355998521,1741789852181,-500.0,0.00024931,2]
[355998522,1741789852190,-593.11044773,0.00024931,2]
[355998523,1741789852200,-821.08,0.00024931,2]
[355998524,1741789852209,-500.0,0.00024931,2]
[355998525,1741789852219,-519.5,0.00024931,2]
[355998526,1741789852228,-19380.77059865,0.00024931,2]
[355998527,1741789852243,-2462.76940135,0.00024931,2]
[355998528,1741789852252,-500.0,0.00024931,2]
[355998529,1741789852261,-818.52,0.00024931,2]
[355998530,1741789852271,-14394.76839873,0.00024931,2]
[355998532,1741790133551,227.7233834,0.00015632,2]
[355998533,1741790512764,-151.0,0.00022,10]
[355998534,1741790512802,-300.0,0.000224,10]
[355998535,1741790512850,-300.0,0.000239,11]
[355998536,1741790512894,-300.0,0.000254,12]
[355998537,1741790512927,-500.0,0.000254,10]
[355998538,1741790512961,-500.0,0.000254,10]
[355998539,1741790512995,-500.0,0.000254,10]
[355998540,1741790513031,-500.0,0.000254,10]
[355998541,1741790513067,-500.0,0.000254,10]
[355998542,1741790513102,-500.0,0.000254,10]
[355998543,1741790513133,-500.0,0.000254,10]
[355998544,1741790513164,-500.0,0.000254,10]
[355998545,1741790513194,-500.0,0.000254,10]
[355998546,1741790513224,-500.0,0.000254,10]
[355998547,1741790513256,-500.0,0.000254,10]
[355998548,1741790513288,-600.0,0.000254,10]
[355998549,1741790513320,-600.0,0.000254,10]
[355998550,1741790513351,-600.0,0.000254,10]
[355998551,1741790513381,-600.0,0.000254,10]
[355998552,1741790513411,-600.0,0.000254,10]
[355998553,1741790513440,-600.0,0.000254,10]
[355998554,1741790513469,-600.0,0.000254,10]
[355998555,1741790513501,-600.0,0.000254,10]
[355998556,1741790513532,-600.0,0.000254,10]
[355998557,1741790513562,-600.0,0.000254,10]
[355998558,1741790513595,-600.0,0.000254,10]
[355998559,1741790513626,-600.0,0.000254,10]
[355998560,1741790513654,-600.0,0.000254,10]
[355998561,1741790513682,-416.66666667,0.000254,10]
[355998562,1741790513711,-15577.25547611,0.000254,10]
[355998563,1741790513744,-19479.15296082,0.00026,30]
[355998564,1741790513774,-416.66666667,0.00026,30]
[355998565,1741790513803,-15577.25547611,0.00026,30]
[355998566,1741790513838,-300.0,0.000269,12]
[355998567,1741790513868,-200.0,0.00027,120]
[355998568,1741790513902,-200.0,0.00027269,10]
[355998569,1741790513931,-200.0,0.00027269,10]
[355998570,1741790513961,-200.0,0.00027269,10]
[355998571,1741790513991,-200.0,0.00027269,10]
[355998572,1741790514182,-200.0,0.00027269,10]
[355998573,1741790514217,-200.0,0.00027269,10]
[355998574,1741790514248,-200.0,0.00027269,10]
[355998575,1741790514280,-200.0,0.00027269,10]
[355998576,1741790514312,-200.0,0.00027269,10]
[355998577,1741790514342,-200.0,0.00027269,10]
[355998578,1741790514373,-200.0,0.00027269,10]
[355998579,1741790514404,-200.0,0.00027269,10]
[355998580,1741790514435,-267.79989044,0.00027269,10]
[355998581,1741790514472,-300.0,0.000284,13]
[355998582,1741790514505,-300.0,0.000299,14]
[355998583,1741790514543,-3000.0,0.0003,120]
[355998584,1741790514621,-13835.0,0.0003,30]
[355998585,1741790514734,-200.0,0.0003,14]
[355998586,1741790514800,-200.0,0.0003,14]
[355998587,1741790514840,-200.0,0.0003,14]
[355998588,1741790514871,-200.0,0.0003,14]
[355998589,1741790514901,-200.0,0.0003,14]
[355998590,1741790514931,-200.0,0.0003,14]
[355998591,1741790514960,-200.0,0.0003,14]
[355998592,1741790514992,-200.0,0.0003,14]
[355998593,1741790515024,-200.0,0.0003,14]
[355998594,1741790515053,-200.0,0.0003,14]
[355998595,1741790515087,-200.0,0.0003,14]
[355998596,1741790515115,-200.0,0.0003,14]
[355998597,1741790515145,-200.0,0.0003,14]
[355998598,1741790515174,-200.0,0.0003,14]
[355998599,1741790515202,-217.0,0.0003,14]
[355998600,1741790515232,-1000.0,0.0003,120]
[355998601,1741790515266,-3493.57306919,0.00031,120]
[355998602,1741790515295,-300.0,0.000314,15]
[355998603,1741790515327,-791.79,0.000318,31]
[355998604,1741790515363,-791.79,0.000318,31]
[355998605,1741790515395,-791.79,0.000318,31]
[355998606,1741790515427,-791.79,0.000318,31]
[355998607,1741790515460,-791.79,0.000318,31]
[355998608,1741790515492,-791.79,0.000318,31]
[355998609,1741790515523,-791.79,0.000318,31]
[355998610,1741790515556,-791.79,0.000318,31]
[355998611,1741790515589,-791.79,0.000318,31]
[355998612,1741790515622,-791.79,0.000318,31]
[355998613,1741790515654,-791.79,0.000318,31]
[355998614,1741790515685,-791.79,0.000318,31]
[355998615,1741790515715,-270000.0,0.00032,120]
[355998616,1741790515746,-300.0,0.00032,120]
[355998617,1741790515774,-1000.0,0.00032,120]
[355998618,1741790515804,-416.66666667,0.00032,120]
[355998619,1741790515835,-15577.25547611,0.00032,120]
[355998620,1741790515865,-1000.0,0.00032384,120]
[355998621,1741790515895,-1000.0,0.00032438,120]
[355998622,1741790515927,-1000.0,0.00032493,120]
[355998623,1741790515959,-1000.0,0.00032548,120]
[355998624,1741790515991,-1000.0,0.00032603,120]
[355998625,1741790516022,-1000.0,0.00032658,120]
[355998626,1741790516052,-1000.0,0.00032712,120]
[355998627,1741790516085,-1000.0,0.00032767,120]
[355998628,1741790516116,-1000.0,0.00032822,120]
[355998629,1741790516145,-1000.0,0.00032876,120]
[355998630,1741790516175,-500.0,0.00032876,120]
[355998631,1741790516205,-500.0,0.00032876,120]
[355998632,1741790516237,-500.0,0.00032876,120]
[355998633,1741790516268,-500.0,0.00032876,120]
[355998634,1741790516304,-500.0,0.00032876,120]
[355998635,1741790516343,-500.0,0.00032876,120]
[355998636,1741790516379,-209.09023234,0.00032876,120]
[355998637,1741790516411,-531.87430988,0.00032876,120]
[355998638,1741790516446,-151.0,0.00032877,14]
[355998639,1741790516480,-151.0,0.00032877,14]
[355998640,1741790516515,-151.0,0.00032877,14]
[355998641,1741790516550,-151.0,0.00032877,14]
[355998642,1741790516589,-299.476003,0.00032877,14]
[355998643,1741790516627,-1000.0,0.00032877,120]
[355998644,1741790516661,-1778.99,0.000329,30]
[355998645,1741790516697,-5458.52,0.000329,30]
[355998646,1741790516733,-1098.77,0.000329,30]
[355998647,1741790516769,-300.0,0.000329,16]
[355998648,1741790516804,-529.39358775,0.00032904,120]
[355998649,1741790516834,-412.445564,0.00033,120]
[355998650,1741790516869,-196.0,0.00034,120]
[355998651,1741790516904,-3000.0,0.00034,120]
[355998652,1741790516940,-1098.77,0.000343,30]
[355998653,1741790516978,-300.0,0.000344,17]
[355998654,1741790517018,-200.0,0.00035,30]
[355998655,1741790517058,-1420.87402277,0.00035,120]
[355998656,1741790517091,-277.94,0.00035,120]
[355998657,1741790517123,-226.0,0.00035,30]
[355998658,1741790517158,-3022.0,0.00035,30]
[355998659,1741790517195,-3184.67343316,0.00035,30]
[355998660,1741790517230,-3000.0,0.00035,120]
[355998661,1741790517263,-1000.0,0.00035288,120]
[355998662,1741790517298,-1000.0,0.00035342,120]
[355998663,1741790517339,-1000.0,0.00035397,120]
[355998664,1741790517372,-159.690022,0.000354,30]
[355998665,1741790517422,-1000.0,0.00035452,120]
[355998666,1741790517497,-1000.0,0.00035507,120]
[355998667,1741790517558,-1000.0,0.00035562,120]
[355998668,1741790517636,-1000.0,0.00035616,120]
[355998669,1741790517703,-1098.77,0.000357,30]
[355998670,1741790517738,-568.394424,0.000359,18]
[355998671,1741790517772,-663.69237796,0.00036,120]
[355998672,1741790517804,-3000.0,0.00036,120]
[355998673,1741790517839,-75628.85092482,0.00036,30]
[355998674,1741790517874,-200.0,0.00036,120]
[355998675,1741790517910,-151.0,0.00036,14]
[355998676,1741790517946,-289.7888,0.00036,14]
[355998677,1741790517981,-151.0,0.00036,14]
[355998678,1741790518016,-151.0,0.00036,14]
[355998679,1741790518051,-213.025188,0.00036,14]
[355998680,1741790518088,-151.0,0.00036,14]
[355998681,1741790518122,-416.66666667,0.00036,30]
[355998682,1741790518156,-151.0,0.00036,14]
[355998683,1741790518190,-226.885004,0.00036,14]
[355998684,1741790518224,-226.885004,0.00036,14]
[355998685,1741790518260,-500.0,0.00036164,60]
[355998686,1741790518296,-1583.11104658,0.000362,98]
[355998687,1741790518332,-1583.11104654,0.000362,98]
[355998688,1741790518367,-1583.11104654,0.000362,98]
[355998689,1741790518402,-1583.11104654,0.000362,98]
[355998690,1741790518435,-1778.99,0.000365,30]
[355998691,1741790518468,-5458.52,0.000365,30]
[355998692,1741790518505,-791.79,0.000365,31]
[355998693,1741790518543,-791.79,0.000365,31]
[355998694,1741790518581,-791.79,0.000365,31]
[355998695,1741790518620,-791.79,0.000365,31]
[355998696,1741790518657,-791.79,0.000365,31]
[355998697,1741790518906,-791.79,0.000365,31]
[355998698,1741790518942,-791.79,0.000365,31]
[355998699,1741790518977,-791.79,0.000365,31]
[355998700,1741790519012,-791.79,0.000365,31]
[355998701,1741790519047,-791.79,0.000365,31]
[355998702,1741790519085,-791.79,0.000365,31]
[355998703,1741790519120,-791.79,0.000365,31]
[355998704,1741790519153,-791.79,0.000365,31]
[355998705,1741790519186,-791.79,0.000365,31]
[355998706,1741790519222,-791.79,0.000365,31]
[355998707,1741790519256,-791.79,0.000365,31]
[355998708,1741790519294,-791.79,0.000365,31]
[355998709,1741790519329,-791.79,0.000365,31]
[355998710,1741790519375,-791.79,0.000365,31]
[355998711,1741790519435,-791.79,0.000365,31]
[355998712,1741790519493,-791.79,0.000365,31]
[355998713,1741790519551,-791.79,0.000365,31]
[355998714,1741790519614,-791.79,0.000365,31]
[355998715,1741790519651,-791.79,0.000365,31]
[355998716,1741790519680,-151.0,0.000365,14]
[355998717,1741790519709,-1078.887824,0.000365,14]
[355998718,1741790519737,-1078.887824,0.000365,14]
[355998719,1741790519765,-5045.25013823,0.000368,120]
[355998720,1741790519794,-2430.61613321,0.00036898,120]
[355998721,1741790519821,-7389.88,0.000369,14]
[355998722,1741790519851,-5537.40843786,0.00036927,60]
[355998723,1741790519880,-1243.02547834,0.00036972,57]
[355998724,1741790519910,-1098.77,0.00037,30]
[355998725,1741790519940,-2000.0,0.00037,15]
[355998726,1741790519970,-2000.0,0.00037,15]
[355998727,1741790520000,-595.27928178,0.00037,12]
[355998728,1741790520030,-1385.0,0.00037,120]
[355998729,1741790520061,-159.690022,0.00037,60]
[355998730,1741790520092,-5000.0,0.00037181,62]
[355998731,1741790520124,-5000.0,0.00037181,61]
[355998732,1741790520155,-5000.0,0.00037181,59]
[355998733,1741790520186,-500.0,0.0003726,60]
[355998734,1741790520222,-150.0,0.000375,112]
[355998735,1741790520256,-297460.15276124,0.000375,120]
[355998736,1741790521675,-200.0,0.00049958,10]
[355998737,1741790521707,-40741.41425115,0.00049958,20]
[355998738,1741790521740,-2000.0,0.00049958,120]
[355998739,1741790521773,-20000.0,0.00049958,30]
[355998740,1741790521803,-10000.0,0.00049958,30]
[355998741,1741790521834,-10000.0,0.00049958,30]
[355998742,1741790521866,-50000.0,0.00049958,60]
[355998743,1741790521898,-50000.0,0.00049958,30]
[355998744,1741790521929,-50000.0,0.00049958,30]
[355998745,1741790521963,-50000.0,0.00049958,30]
[355998746,1741790521995,-50000.0,0.00049958,30]
[355998747,1741790522026,-244.5036061,0.00049958,120]
[355998748,1741790522057,-531.82844226,0.00049958,120]
[355998749,1741790522088,-932.67451025,0.00049958,120]
[355998750,1741790522119,-23232.14061313,0.00049958,60]
[355998751,1741790522149,-256886.57886,0.00049958,30]
[355998752,1741790522179,-5000.0,0.00049958,120]
[355998753,1741790522213,-411.42438647,0.00049958,120]
[355998754,1741790522243,-1911.0,0.00049958,120]
[355998755,1741790522274,-2000.0,0.00049958,120]
[355998756,1741790522303,-1000.0,0.00049958,120]
[355998757,1741790522334,-1000.0,0.00049958,120]
[355998758,1741790522364,-1263.07536774,0.00049958,67]
[355998759,1741790522395,-272645.3599629,0.00049958,32]
[355998760,1741790527963,-151.0,0.000361,14]
[355998761,1741790527994,-151.0,0.000361,14]
[355998762,1741790528025,-735653.15723876,0.000375,120]
[355998763,1741790528056,-5000.0,0.000375,35]
[355998764,1741790528095,-151.0,0.000375,14]
[355998765,1741790528125,-151.0,0.000375,14]
[355998766,1741790528155,-151.0,0.000375,14]
[355998767,1741790528187,-298.055395,0.000375,14]
[355998768,1741790528219,-151.0,0.000375,14]
[355998769,1741790528252,-226.885004,0.000375,14]
[355998770,1741790528284,-226.885004,0.000375,14]
[355998771,1741790528318,-1078.887824,0.000375,14]
[355998772,1741790528351,-1078.887824,0.000375,14]
[355998773,1741790528383,-151.0,0.000375,14]
[355998774,1741790528414,-151.0,0.000375,14]
[355998775,1741790528447,-1333.0,0.00037753,120]
[355998776,1741790528479,-1583.11104654,0.000379,108]
[355998777,1741790528510,-3000.0,0.00038,120]
[355998778,1741790528540,-1428.21,0.00038,120]
[355998779,1741790528569,-1428.21,0.00038,120]
[355998780,1741790528601,-1428.21,0.00038,120]
[355998781,1741790528631,-1428.21,0.00038,120]
[355998782,1741790528661,-1428.21,0.00038,120]
[355998783,1741790528691,-3002.88799459,0.00038,90]
[355998784,1741790528721,-250.0,0.00038,120]
[355998785,1741790528753,-569.017349,0.00038,30]
[355998786,1741790528785,-39170.94071939,0.00038,10]
[355998787,1741790528816,-6588.89,0.00038356,120]
[355998788,1741790528849,-500.0,0.00038356,60]
[355998789,1741790528879,-335.6896956,0.00038356,30]
[355998790,1741790528908,-7340.41710356,0.00038419,63]
[355998791,1741790528938,-5000.0,0.00038419,65]
[355998792,1741790528969,-5000.0,0.00038419,63]
[355998793,1741790528999,-5000.0,0.00038419,64]
[355998794,1741790529030,-1098.77,0.000385,30]
[355998795,1741790529061,-10000.0,0.000385,50]
[355998796,1741790529092,-151.2,0.000385,120]
[355998797,1741790529122,-354.0,0.00038542,14]
[355998798,1741790529152,-3555.71141658,0.0003895,30]
[355998799,1741790529182,-5458.52,0.00039,30]
[355998800,1741790529213,-7684.13190167,0.00039,120]
[355998801,1741790529244,-4015.0,0.00039,120]
[355998802,1741790529276,-37096.90448331,0.00039,120]
[355998803,1741790531311,-63211.82317002,0.00039,120]
[355998804,1741790531345,-1778.99,0.000391,30]
[355998805,1741790531378,-500.0,0.00039452,60]
[355998806,1741790531409,-10000.0,0.000396,60]
[355998807,1741790531441,-1098.77,0.000396,30]
[355998808,1741790531471,-481.42725,0.00039661,14]
[355998809,1741790531502,-6588.89,0.00039726,120]
[355998810,1741790531531,-910.212404,0.00039754,73]
[355998811,1741790531562,-616.59658597,0.00039754,72]
[355998812,1741790531598,-1052.04837285,0.00039779,70]
[355998813,1741790531630,-168857.15978065,0.000398,120]
[355998814,1741790531662,-2938.44416874,0.000398,60]
[355998815,1741790531697,-151.0,0.000398,14]
[355998816,1741790531738,-151.0,0.000398,14]
[355998817,1741790531771,-154.735552,0.000398,14]
[355998818,1741790531940,-226.885004,0.000398,14]
[355998819,1741790531973,-226.885004,0.000398,14]
[355998820,1741790532008,-1078.887824,0.000398,14]
[355998821,1741790532041,-1078.887824,0.000398,14]
[355998822,1741790532072,-151.0,0.000398,14]
[355998823,1741790532104,-151.0,0.000398,14]
[355998824,1741790532135,-354.0,0.00039871,14]
[355998825,1741790532166,-3000.00457739,0.00039888,120]
[355998826,1741790532196,-3498.42,0.000399,120]
[355998827,1741790532227,-165.67202048,0.000399,30]
[355998828,1741790532259,-498.13674168,0.00039999,31]
[355998829,1741790532291,-331.58202058,0.00039999,31]
[355998830,1741790532326,-618.12273883,0.00039999,31]
[355998831,1741790532363,-500.0,0.00039999,31]
[355998832,1741790532395,-564.49540207,0.00039999,31]
[355998833,1741790532426,-500.0,0.00039999,31]
[355998834,1741790532456,-500.0,0.00039999,31]
[355998835,1741790532487,-500.0,0.00039999,31]
[355998836,1741790532517,-500.0,0.00039999,31]
[355998837,1741790532547,-158.43311276,0.00039999,31]
[355998838,1741790532576,-626906.49044598,0.0004,30]
[355998839,1741790536643,-1077858.99904724,0.0004,30]
[355998840,1741790536674,-151.54433336,0.0004,120]
[355998841,1741790536705,-126217.94211188,0.0004,30]
[355998842,1741790536737,-360.0,0.0004,120]
[355998843,1741790536769,-2806702.31916513,0.0004,30]
[355998844,1741790536840,-1063033.53460175,0.0004,30]
[355998845,1741790536913,-501.77,0.0004,120]
[355998846,1741790536983,-5000.0,0.0004,120]
[355998847,1741790537058,-50000.0,0.0004,15]
[355998848,1741790537129,-3870173.89074064,0.0004,30]
[355998849,1741790557703,-500.0,0.00025,10]
[355998850,1741790557768,-500.0,0.00025,10]
[355998851,1741790557837,-500.0,0.00025,10]
[355998852,1741790557900,-648.07551672,0.00025,10]
[355998853,1741790557970,-500.0,0.00025,10]
[355998854,1741790558041,-500.0,0.00025,10]
[355998855,1741790558109,-500.0,0.00025,10]
[355998856,1741790558183,-500.0,0.00025,10]
[355998857,1741790558247,-500.0,0.00025,10]
[355998858,1741790558316,-500.0,0.00025,10]
[355998859,1741790558382,-500.0,0.00025,10]
[355998860,1741790558439,-500.0,0.00025,10]
[355998861,1741790558501,-500.0,0.00025,10]
[355998862,1741790558557,-500.0,0.00025,10]
[355998863,1741790558650,-264.90974521,0.00039999,31]
[355998864,1741790558710,-500.0,0.00039999,31]
[355998865,1741790558776,-419.34862062,0.00039999,31]
[355998866,1741790558836,-8991667.66611745,0.0004,30]
[355998867,1741790573549,-422.71,0.000329,30]
[355998868,1741790573605,-29193.48,0.000329,30]
[355998869,1741790573669,-422.71,0.000348,30]
[355998870,1741790573726,-29193.48,0.000348,30]
[355998871,1741790573792,-422.71,0.000361,30]
[355998872,1741790573852,-29193.48,0.000362,30]
[355998873,1741790573906,-151.0,0.000375,14]
[355998874,1741790573965,-151.0,0.000375,14]
[355998875,1741790574023,-151.0,0.000375,14]
[355998876,1741790574082,-422.71,0.000376,30]
[355998877,1741790574145,-422.71,0.00039,30]
[355998878,1741790574207,-151.0,0.000398,14]
[355998879,1741790574270,-151.0,0.000398,14]
[355998880,1741790574330,-422.71,0.000399,30]
[355998881,1741790574389,-4217762.02730118,0.0004,30]
[355998882,1741790574444,-1011.0,0.0004,19]
[355998883,1741790574499,-233.0,0.0004,120]
[355998884,1741790574557,-1659.54,0.0004,12]
[355998885,1741790574610,-1359.24907022,0.0004,120]
[355998886,1741790574665,-420804.73774173,0.0004,30]
[355998887,1741790574723,-1600.0,0.0004,120]
[355998888,1741790574778,-164000.25390307,0.0004,30]
[355998889,1741790574831,-151.0,0.0004,14]
[355998890,1741790574889,-151.0,0.0004,14]
[355998891,1741790574955,-259.899353,0.0004,14]
[355998892,1741790575020,-151.0,0.0004,14]
[355998893,1741790575080,-151.0,0.0004,14]
[355998894,1741790575138,-151.0,0.0004,14]
[355998895,1741790575199,-151.0,0.0004,14]
[355998896,1741790575254,-416.66666667,0.0004,10]
[355998897,1741790575312,-226.885004,0.0004,14]
[355998898,1741790575375,-226.885004,0.0004,14]
[355998899,1741790575431,-226.885004,0.0004,14]
[355998900,1741790575486,-226.885003,0.0004,14]
[355998901,1741790575542,-1078.887824,0.0004,14]
[355998902,1741790575597,-1078.887824,0.0004,14]
[355998903,1741790575651,-1078.887824,0.0004,14]
[355998904,1741790575707,-1078.887817,0.0004,14]
[355998905,1741790575760,-559.6044626,0.0004,30]
[355998906,1741790575820,-559.6044626,0.0004,30]
[355998907,1741790575883,-559.6044626,0.0004,30]
[355998908,1741790575948,-559.6044626,0.0004,30]
[355998909,1741790576019,-2200.0,0.0004,14]
[355998910,1741790576084,-151.0,0.0004,14]
[355998911,1741790576147,-151.0,0.0004,14]
[355998912,1741790576208,-151.0,0.0004,14]
[355998913,1741790576271,-151.0,0.0004,14]
[355998914,1741790576338,-5458.52,0.000403,30]
[355998915,1741790576404,-1778.99,0.000404,30]
[355998916,1741790576468,-500.0,0.00040548,60]
[355998917,1741790576531,-2000.0,0.00040603,120]
[355998918,1741790576590,-2000.0,0.00040658,120]
[355998919,1741790576655,-2000.0,0.00040712,120]
[355998920,1741790576718,-2000.0,0.00040767,120]
[355998921,1741790576779,-422.71,0.000408,30]
[355998922,1741790576842,-2000.0,0.00040822,120]
[355998923,1741790576910,-2000.0,0.00040877,120]